bitfinex/quotes_SOLUSD_20220212
["timestamp","ask_amount","ask_price","bid_price","bid_amount"]
[1644682688281,38.50289356,96.184,96.071,36.66453714]
[1644682688481,104.0,96.179,96.071,36.66453714]
[1644682688780,9.56214235,96.178,96.071,36.66453714]
[1644682688983,104.0,96.177,96.071,36.66453714]
[1644682689180,5.2,96.176,96.071,36.66453714]
[1644682689381,9.56214235,96.176,96.071,36.66453714]
[1644682689582,4.36214235,96.175,96.071,36.66453714]
[1644682689781,15.6164,96.15,96.071,36.66453714]
[1644682689984,42.18232887,96.148,96.071,36.66453714]
[1644682690185,5.202,96.147,96.071,36.66453714]
[1644682690381,5.202,96.147,96.041,5.202]
[1644682690585,5.202,96.147,96.03,28.108]
[1644682690785,15.618,96.14,96.03,4.07481]
[1644682690983,5.203,96.139,96.03,4.07481]
[1644682691384,5.203,96.139,96.031,40.75957365]
[1644682691985,104.0,96.138,96.031,40.75957365]
[1644682692185,5.203,96.137,96.031,40.75957365]
[1644682692386,5.203,96.137,96.032,0.25]
[1644682692790,43.19034949,96.119,96.032,0.25]
[1644682693588,43.19034949,96.119,96.031,40.75957365]
[1644682693790,15.623,96.11,96.031,40.75957365]
[1644682693989,43.19034949,96.119,96.031,40.75957365]
[1644682693990,5.204,96.109,96.031,40.75957365]
[1644682694190,7.18,96.112,96.031,40.75957365]
[1644682694388,104.0,96.107,95.982,15.5175]
[1644682694590,104.0,96.107,95.982,19.59435]
[1644682694789,5.205,96.106,95.982,22.21825296]
[1644682694988,5.205,96.106,95.983,0.25]
[1644682695191,5.205,96.106,95.983,15.74861158]
[1644682695392,5.205,96.106,95.984,41.83750421]
[1644682695592,35.35650141,96.104,95.984,41.83750421]
[1644682695809,104.0,96.099,95.984,44.46140717]
[1644682695991,104.0,96.099,95.985,5.205]
[1644682696192,5.206,96.098,95.985,5.205]
[1644682696393,104.0,96.097,95.985,5.205]
[1644682696595,5.206,96.096,95.984,41.83750421]
[1644682696793,104.0,96.095,95.984,41.83750421]
[1644682696993,15.633,96.06,95.984,41.83750421]
[1644682697198,138.78911121,96.059,95.984,41.83750421]
[1644682697393,34.78911121,96.059,95.984,41.83750421]
[1644682697792,34.78911121,96.059,95.985,0.25]
[1644682697996,34.78911121,96.059,95.984,41.83750421]
[1644682697997,104.0,96.057,95.984,41.83750421]
[1644682698194,15.6326,96.05,95.982,4.07685]
[1644682698395,5.207,96.049,95.968,5.206]
[1644682698599,104.0,96.048,95.968,5.206]
[1644682698794,5.207,96.047,95.968,5.206]
[1644682699194,15.6353,96.04,95.969,48.41678902]
[1644682699394,5.208,96.039,95.969,48.41678902]
[1644682699599,47.00078075,96.038,95.969,48.41678902]
[1644682699895,5.208,96.037,95.969,48.41678902]
[1644682700093,47.00078075,96.038,95.969,48.41678902]
[1644682700597,15.6359,96.03,95.941,5.208]
[1644682700797,15.6359,96.03,95.93,15.49861158]
[1644682700994,5.208,96.029,95.93,15.49861158]
[1644682701195,5.208,96.036,95.93,15.49861158]
[1644682701397,104.0,96.035,95.93,15.49861158]
[1644682701596,5.208,96.034,95.931,47.07961943]
[1644682701799,48.579,96.037,95.931,49.70352239]
[1644682702096,48.579,96.037,95.932,22.20148454]
[1644682702295,53.787,96.037,95.932,22.20148454]
[1644682702495,53.787,96.037,95.933,18.12251454]
[1644682702697,53.787,96.037,95.934,4.07889]
[1644682702897,53.787,96.037,95.934,22.20140454]
[1644682703099,53.787,96.037,95.94,15.6351]
[1644682703323,48.579,96.037,95.94,28.1251]
[1644682703998,48.579,96.037,95.931,47.07961943]
[1644682704199,5.208,96.036,95.931,47.07961943]
[1644682704601,10.64785156,96.036,95.931,47.07961943]
[1644682705403,10.64785156,96.036,95.931,41.87161943]
[1644682705606,104.0,96.035,95.932,0.25]
[1644682705802,104.0,96.029,95.932,0.25]
[1644682706208,104.0,96.027,95.931,41.87161943]
[1644682706409,104.0,96.025,95.931,41.87161943]
[1644682706609,5.208,96.024,95.932,0.25]
[1644682706810,5.208,96.029,95.94,15.6352]
[1644682709516,5.208,96.036,95.94,15.6352]
[1644682711430,5.208,96.036,95.94,31.13381158]
[1644682711631,48.579,96.037,95.941,5.208]
[1644682711831,48.579,96.037,95.96,15.6309]
[1644682712032,48.579,96.037,95.961,41.66060259]
[1644682712632,48.579,96.037,95.961,40.16060259]
[1644682713439,5.208,96.036,95.961,40.16060259]
[1644682713635,48.579,96.037,95.961,40.16060259]
[1644682713836,5.208,96.036,95.961,40.16060259]
[1644682714037,104.0,96.035,95.961,40.16060259]
[1644682714235,48.579,96.037,95.961,40.16060259]
[1644682714236,5.208,96.034,95.961,40.16060259]
[1644682714439,5.208,96.035,95.961,40.16060259]
[1644682714638,5.208,96.036,95.94,15.6342]
[1644682714837,5.208,96.034,95.94,15.6342]
[1644682715040,5.208,96.035,95.92,15.6375]
[1644682715238,5.208,96.033,95.92,19.71698]
[1644682715438,5.208,96.036,95.92,19.71698]
[1644682715651,5.208,96.036,95.921,47.34355605]
[1644682715844,15.6364,96.03,95.92,19.71698]
[1644682716040,12.49,96.02,95.92,4.07948]
[1644682716240,5.208,96.019,95.92,4.07948]
[1644682716842,34.47923345,96.018,95.92,4.07948]
[1644682717042,5.21,96.017,95.92,4.07948]
[1644682717841,15.6448,95.99,95.92,4.07948]
[1644682718042,5.21,95.989,95.92,4.07948]
[1644682718243,5.21,95.999,95.92,4.07948]
[1644682718447,104.0,95.987,95.92,4.07948]
[1644682718645,5.21,95.986,95.92,4.07948]
[1644682718844,5.21,95.986,95.921,0.25]
[1644682719249,42.09732699,95.988,95.921,0.25]
[1644682719250,5.21,95.987,95.921,0.25]
[1644682719444,42.09732699,95.988,95.921,0.25]
[1644682719844,104.0,95.986,95.921,0.25]
[1644682720046,5.21,95.985,95.907,45.82545452]
[1644682720245,15.6438,95.98,95.908,0.25]
[1644682720645,5.211,95.979,95.908,0.25]
[1644682720848,42.09732699,95.988,95.907,44.57545452]
[1644682721049,42.09732699,95.988,95.909,15.49861158]
[1644682721248,42.09732699,95.988,95.91,33.3412]
[1644682721649,42.09732699,95.988,95.911,15.49861158]
[1644682722048,5.211,95.987,95.911,15.49861158]
[1644682722248,42.09732699,95.988,95.92,15.6385]
[1644682722647,42.09732699,95.988,95.92,28.1285]
[1644682723247,42.09732699,95.988,95.912,5.461]
[1644682723449,42.09732699,95.988,95.912,0.25]
[1644682724249,5.211,95.987,95.912,0.25]
[1644682724448,42.09732699,95.988,95.912,0.25]
[1644682724649,42.09732699,95.988,95.907,44.57545452]
[1644682724650,5.211,95.987,95.907,42.82545452]
[1644682724850,42.09732699,95.988,95.912,15.49861158]
[1644682725051,42.09732699,95.988,95.92,12.49]
[1644682725758,42.09732699,95.988,95.912,15.49861158]
[1644682725953,5.461,95.987,95.912,15.49861158]
[1644682726353,42.09732699,95.988,95.912,15.49861158]
[1644682726753,42.09732699,95.988,95.913,5.461]
[1644682726959,1.46997818,96.004,95.92,15.6387]
[1644682727154,2.93410972,96.031,95.913,17.91490296]
[1644682727155,2.93410972,96.031,95.922,63.0]
[1644682727358,438.37984098,96.059,95.922,63.0]
[1644682727359,438.37984098,96.059,95.93,12.49]
[1644682727755,438.37984098,96.059,95.93,168.62]
[1644682727955,438.37984098,96.059,95.95,156.13]
[1644682728155,438.37984098,96.059,95.98,15.6207]
[1644682728356,402.19504098,96.059,95.99,12.49]
[1644682728564,2.93410972,96.112,96.001,5.0]
[1644682728760,2.93410972,96.115,96.01,12.49]
[1644682728958,2.93410972,96.116,96.01,12.49]
[1644682729155,4.38842103,96.139,96.011,67.35506531]
[1644682729156,2.93410972,96.121,96.011,67.35506531]
[1644682729356,39.2480594,96.122,96.02,156.13]
[1644682729583,39.2480594,96.122,96.03,168.62]
[1644682729757,39.2480594,96.122,96.031,40.79272309]
[1644682729956,39.2480594,96.122,96.031,35.58872309]
[1644682730158,5.204,96.121,96.031,35.58872309]
[1644682730357,4.1137569,96.12,96.04,15.6124]
[1644682730557,4.1137569,96.12,96.04,28.1024]
[1644682730761,5.203,96.119,96.04,28.1024]
[1644682730959,5.203,96.119,96.041,23.18461158]
[1644682731157,5.203,96.119,96.042,104.0]
[1644682731359,5.203,96.119,96.043,5.203]
[1644682731560,2.93410972,96.146,96.043,5.203]
[1644682731759,5.203,96.145,96.06,15.6134]
[1644682731958,2.93410972,96.148,96.07,12.49]
[1644682732166,8.13610972,96.165,96.07,22.86]
[1644682732360,5.202,96.155,96.07,22.86]
[1644682732559,34.99007768,96.154,96.071,25.08643156]
[1644682732760,34.99007768,96.154,96.071,30.28643156]
[1644682732959,34.99007768,96.154,96.071,25.08643156]
[1644682733160,34.99007768,96.154,96.072,5.202]
[1644682733363,34.99007768,96.154,96.071,25.08643156]
[1644682733560,34.99007768,96.154,96.072,5.202]
[1644682733762,34.99007768,96.154,96.09,15.6082]
[1644682734065,2.93410972,96.183,96.091,34.21708373]
[1644682734263,2.93410972,96.185,96.091,44.94708373]
[1644682734465,5.2,96.197,96.092,5.2]
[1644682734664,5.2,96.198,96.092,5.2]
[1644682734861,5.2,96.207,96.093,17.98161158]
[1644682735064,5.2,96.197,96.093,17.98161158]
[1644682735265,51.16779257,96.206,96.093,17.98161158]
[1644682735563,9.29577161,96.205,96.093,17.98161158]
[1644682735764,5.45,96.205,96.1,15.6086]
[1644682735964,0.25,96.205,96.11,12.49]
[1644682736163,0.25,96.205,96.111,26.45807092]
[1644682736364,5.199,96.204,96.111,26.45807092]
[1644682736764,47.07199015,96.206,96.111,26.45807092]
[1644682737166,47.07199015,96.206,96.112,17.98161158]
[1644682737367,5.199,96.205,96.131,34.21708373]
[1644682737570,47.07199015,96.206,96.131,34.21708373]
[1644682738770,5.199,96.205,96.14,15.6022]
[1644682739270,0.25,96.204,96.12,12.49]
[1644682739469,5.199,96.203,96.113,5.199]
[1644682739871,0.25,96.202,96.09,15.6762]
[1644682740072,5.2,96.201,96.091,35.04248754]
[1644682740270,0.25,96.2,96.091,35.04248754]
[1644682740474,15.6116,96.19,96.091,35.04248754]
[1644682740673,45.01108708,96.188,96.092,0.25]
[1644682740871,5.2,96.187,96.093,4.07214]
[1644682741271,0.25,96.186,96.093,4.07214]
[1644682741471,5.2,96.185,96.093,4.07214]
[1644682741676,15.6125,96.18,96.093,4.07214]
[1644682742072,5.2,96.179,96.093,4.07214]
[1644682742271,45.01108708,96.188,96.094,2.62390296]
[1644682742472,45.01108708,96.188,96.095,4.07205]
[1644682742670,45.01108708,96.188,96.096,47.86325102]
[1644682742870,5.45,96.187,96.098,4.07193]
[1644682743272,15.6121,96.18,96.098,4.07193]
[1644682743471,5.2,96.179,96.098,4.07193]
[1644682743673,5.45,96.179,96.098,4.07193]
[1644682743873,5.45,96.179,96.099,2.62390296]
[1644682744276,5.45,96.179,96.1,39.99345662]
[1644682744476,0.25,96.179,96.099,2.62390296]
[1644682744677,0.25,96.179,96.1,0.25]
[1644682744874,104.0,96.177,96.087,7.82390296]
[1644682745074,15.6142,96.17,96.087,7.82390296]
[1644682745274,5.45,96.169,96.088,0.25]
[1644682745573,37.16093076,96.168,96.088,0.25]
[1644682745774,5.45,96.167,96.088,0.25]
[1644682746175,5.45,96.167,96.089,2.62390296]
[1644682746374,0.25,96.167,96.089,2.62390296]
[1644682746774,0.25,96.167,96.088,0.25]
[1644682746977,5.2,96.166,96.088,0.25]
[1644682747375,0.25,96.165,96.088,0.25]
[1644682747575,5.2,96.164,96.088,0.25]
[1644682747776,104.25,96.163,96.088,0.25]
[1644682749785,15.6153,96.16,96.088,0.25]
[1644682749989,15.6153,96.16,96.074,2.62390296]
[1644682749990,0.25,96.159,96.074,2.62390296]
[1644682750286,5.45,96.159,96.075,0.25]
[1644682750488,2.62390296,96.158,96.075,0.25]
[1644682750692,5.202,96.157,96.075,0.25]
[1644682750890,5.452,96.157,96.075,0.25]
[1644682751089,15.6185,96.14,96.075,0.25]
[1644682751293,104.0,96.138,96.075,0.25]
[1644682751690,47.69177199,96.137,96.075,0.25]
[1644682752104,15.6207,96.13,96.075,0.25]
[1644682752299,5.452,96.129,96.075,0.25]
[1644682753801,5.452,96.129,96.076,2.62390296]
[1644682754001,5.202,96.135,96.076,2.62390296]
[1644682754202,5.202,96.136,96.076,2.62390296]
[1644682754404,5.202,96.136,96.075,0.25]
[1644682755006,5.202,96.136,96.05,2.62390296]
[1644682755304,5.202,96.136,96.051,42.59534074]
[1644682755708,46.9262,96.149,96.052,25.80851454]
[1644682755908,5.203,96.159,96.06,12.49]
[1644682756106,5.48,96.253,96.06,12.49]
[1644682756107,5.202,96.17,96.09,15.6102]
[1644682756306,18.54660972,96.18,96.09,15.6102]
[1644682756506,5.2,96.161,96.09,15.6102]
[1644682756706,48.29229183,96.161,96.091,20.70371687]
[1644682757110,48.29229183,96.161,96.092,2.62390296]
[1644682757311,5.2,96.16,96.092,2.62390296]
[1644682757511,48.29229183,96.161,96.092,2.62390296]
[1644682758709,53.49229183,96.161,96.092,2.62390296]
[1644682759808,48.29229183,96.161,96.092,2.62390296]
[1644682760813,4.37347717,96.16,96.092,2.62390296]
[1644682761010,4.12347717,96.159,96.09,15.6102]
[1644682761213,0.25,96.158,96.09,15.6102]
[1644682761416,0.25,96.158,96.081,5.2]
[1644682761610,0.25,96.158,96.08,12.49]
[1644682761611,4.12347717,96.157,96.08,12.49]
[1644682761810,0.25,96.156,96.08,12.49]
[1644682762214,4.12347717,96.155,96.08,12.49]
[1644682762410,5.2,96.154,96.08,12.49]
[1644682762611,4.12347717,96.153,96.081,0.25]
[1644682762813,0.25,96.152,96.08,28.1029]
[1644682763014,104.0,96.15,96.061,4.07349]
[1644682763212,2.93410972,96.134,96.061,4.07349]
[1644682763414,2.93410972,96.117,96.048,5.2]
[1644682763613,13.14410972,96.117,96.048,5.2]
[1644682763812,45.93650407,96.116,96.048,5.2]
[1644682764011,45.93650407,96.116,96.046,43.40638475]
[1644682764413,45.93650407,96.116,96.028,5.203]
[1644682764614,54.60650407,96.116,96.028,5.203]
[1644682764917,15.623,96.11,96.012,17.98161158]
[1644682765114,9.32673786,96.109,96.012,17.98161158]
[1644682765316,4.12173786,96.108,96.012,17.98161158]
[1644682765515,2.93410972,96.105,96.013,36.49181529]
[1644682765715,2.93410972,96.104,96.013,36.49181529]
[1644682765914,2.93410972,96.103,96.013,36.49181529]
[1644682766114,46.10741816,96.101,96.014,0.25]
[1644682766314,9.32673786,96.1,96.014,0.25]
[1644682766716,20.8293,96.1,96.014,0.25]
[1644682767916,4.12106544,96.099,96.014,0.25]
[1644682768116,5.205,96.098,96.014,0.25]
[1644682768518,5.205,96.099,96.014,0.25]
[1644682769821,0.25,96.098,96.014,0.25]
[1644682770024,5.205,96.097,96.014,0.25]
[1644682770221,0.25,96.096,96.014,0.25]
[1644682770425,5.205,96.095,96.014,0.25]
[1644682770827,0.25,96.094,96.014,0.25]
[1644682771029,15.6262,96.09,96.014,0.25]
[1644682771229,5.455,96.089,95.993,5.205]
[1644682771431,104.0,96.088,95.993,5.205]
[1644682771629,9.32349349,96.087,95.962,17.90938936]
[1644682771827,2.93410972,96.082,95.963,39.03770135]
[1644682772027,12.49,96.08,95.963,39.03770135]
[1644682772227,104.0,96.078,95.964,17.90938936]
[1644682772427,15.6326,96.06,95.97,15.6307]
[1644682772733,38.13195653,96.059,95.971,0.25]
[1644682773026,38.13195653,96.059,95.971,25.99029232]
[1644682773229,5.207,96.058,95.972,20.53329232]
[1644682773428,38.13195653,96.059,95.972,20.53329232]
[1644682773829,5.207,96.058,95.972,20.53329232]
[1644682774028,5.207,96.058,95.98,15.6292]
[1644682774229,38.13195653,96.059,95.98,15.6292]
[1644682774431,5.207,96.058,95.972,17.90938936]
[1644682774832,0.25,96.057,95.972,17.90938936]
[1644682775031,5.207,96.056,95.972,17.90938936]
[1644682775233,0.25,96.055,95.972,17.90938936]
[1644682775432,5.207,96.054,95.972,17.90938936]
[1644682775832,15.6325,96.05,95.972,17.90938936]
[1644682776236,0.25,96.049,95.972,17.90938936]
[1644682776432,5.457,96.049,95.972,17.90938936]
[1644682776832,5.457,96.049,95.973,0.25]
[1644682778135,15.6341,96.04,95.952,17.90938936]
[1644682778354,0.25,96.039,95.952,17.90938936]
[1644682778537,5.208,96.038,95.952,17.90938936]
[1644682778733,0.25,96.037,95.952,17.90938936]
[1644682778936,5.208,96.036,95.952,17.90938936]
[1644682779137,48.77279036,96.035,95.953,47.62805812]
[1644682779336,48.77279036,96.035,95.953,52.83605812]
[1644682779538,0.25,96.034,95.96,15.6323]
[1644682779735,5.458,96.034,95.96,15.6323]
[1644682779934,5.208,96.034,95.961,17.90938936]
[1644682780735,5.208,96.034,95.962,0.25]
[1644682781239,0.25,96.033,95.962,0.25]
[1644682781440,5.208,96.032,95.962,0.25]
[1644682781638,104.0,96.031,95.962,0.25]
[1644682781837,5.208,96.03,95.962,0.25]
[1644682782037,104.0,96.029,95.962,0.25]
[1644682782238,15.6385,96.02,95.938,17.90938936]
[1644682782540,42.5102581,96.018,95.938,17.90938936]
[1644682782741,5.208,96.017,95.918,17.90938936]
[1644682782944,24.0076,96.016,95.918,17.90938936]
[1644682783142,5.21,96.015,95.9,12.49]
[1644682783343,28.5316,96.015,95.901,4.08029]
[1644682783542,28.5316,96.015,95.901,4.33029]
[1644682783842,15.6394,96.01,95.901,4.33029]
[1644682784042,5.21,96.009,95.901,4.08029]
[1644682784242,104.0,96.013,95.901,4.08029]
[1644682784443,0.25,96.008,95.901,4.08029]
[1644682784651,104.0,96.006,95.901,4.08029]
[1644682784842,5.46,96.005,95.901,4.08029]
[1644682785043,15.6435,95.99,95.901,4.08029]
[1644682785243,46.40366938,95.989,95.902,0.25]
[1644682785449,104.0,95.988,95.901,4.08029]
[1644682785645,5.211,95.987,95.901,4.08029]
[1644682785863,5.461,95.987,95.901,4.08029]
[1644682786766,15.6441,95.98,95.901,4.08029]
[1644682786965,5.211,95.979,95.901,4.08029]
[1644682787165,5.461,95.979,95.902,0.25]
[1644682788665,5.211,95.979,95.902,0.25]
[1644682788968,24.5795,95.987,95.91,15.02]
[1644682789166,5.211,95.978,95.91,15.02]
[1644682789366,5.211,95.986,95.91,15.02]
[1644682789767,5.211,95.986,95.903,2.62390296]
[1644682789968,5.211,95.986,95.911,2.62390296]
[1644682790968,5.211,95.986,95.902,16.86827269]
[1644682791174,24.5795,95.987,95.902,16.61827269]
[1644682791770,0.25,95.986,95.902,16.61827269]
[1644682791972,5.211,95.985,95.902,16.61827269]
[1644682792375,0.25,95.984,95.902,16.61827269]
[1644682792575,5.211,95.983,95.902,16.61827269]
[1644682792773,24.5795,95.987,95.91,15.02]
[1644682792973,24.5795,95.987,95.91,24.98]
[1644682793175,24.5795,95.987,95.912,43.04534486]
[1644682793385,5.211,95.986,95.912,43.04534486]
[1644682793574,24.5795,95.987,95.913,2.87390296]
[1644682793973,0.25,95.986,95.914,2.62390296]
[1644682794174,5.461,95.986,95.914,2.62390296]
[1644682794375,5.211,95.986,95.913,0.25]
[1644682795680,15.644,95.98,95.913,0.25]
[1644682795875,5.211,95.979,95.913,0.25]
[1644682796076,5.461,95.979,95.913,0.25]
[1644682796277,0.25,95.979,95.913,0.25]
[1644682796477,5.211,95.978,95.913,0.25]
[1644682796877,0.25,95.977,95.914,2.62390296]
[1644682798181,5.211,95.976,95.914,2.62390296]
[1644682798379,5.211,95.976,95.913,0.25]
[1644682798579,0.25,95.975,95.913,0.25]
[1644682798980,0.25,95.975,95.914,2.62390296]
[1644682799781,0.25,95.986,95.913,0.25]
[1644682799979,5.461,95.986,95.913,0.25]
[1644682801981,5.211,95.986,95.913,0.25]
[1644682802182,5.211,95.986,95.914,2.62390296]
[1644682802381,5.211,95.986,95.915,23.04159911]
[1644682802582,24.5795,95.987,95.915,23.04159911]
[1644682802784,40.94266938,95.989,95.92,15.02]
[1644682803183,5.21,95.988,95.92,15.02]
[1644682803385,5.21,95.988,95.921,2.62390296]
[1644682804083,0.25,95.987,95.921,2.62390296]
[1644682804282,5.21,95.986,95.92,15.02]
[1644682804484,5.21,95.987,95.921,2.62390296]
[1644682804683,5.21,95.988,95.921,2.62390296]
[1644682805891,40.94266938,95.989,95.921,2.62390296]
[1644682806489,40.94266938,95.989,95.922,47.58316192]
[1644682806889,40.94266938,95.989,95.923,106.62390296]
[1644682807089,5.21,95.988,95.923,106.62390296]
[1644682807289,5.21,95.988,95.924,2.62390296]
[1644682807489,40.94266938,95.989,95.924,2.62390296]
[1644682808089,5.21,95.988,95.924,2.62390296]
[1644682808893,5.21,95.988,95.93,15.6359]
[1644682809691,2.71,95.988,95.93,15.6359]
[1644682810094,40.94266938,95.989,95.924,2.62390296]
[1644682811395,40.94266938,95.989,95.92,15.02]
[1644682811596,40.94266938,95.989,95.92,30.6567]
[1644682811897,40.94266938,95.989,95.921,2.62390296]
[1644682812113,40.94266938,95.989,95.922,45.79489825]
[1644682812895,5.21,95.988,95.922,45.79489825]
[1644682813094,0.25,95.988,95.922,45.79489825]
[1644682813496,0.25,95.988,95.923,0.25]
[1644682813700,4.14236446,95.987,95.923,0.25]
[1644682813899,0.25,95.988,95.923,0.25]
[1644682814097,0.25,95.986,95.923,0.25]
[1644682814300,0.25,95.988,95.923,0.25]
[1644682814498,4.1424506,95.987,95.923,0.25]
[1644682814709,5.46,95.986,95.923,0.25]
[1644682815200,4.14264185,95.985,95.923,0.25]
[1644682815400,5.21,95.984,95.923,0.25]
[1644682815600,5.46,95.984,95.923,0.25]
[1644682815800,4.14264185,95.983,95.923,0.25]
[1644682816001,4.14264185,95.983,95.92,15.02]
[1644682816202,5.21,95.982,95.923,2.62390296]
[1644682816400,4.14264185,95.983,95.923,2.62390296]
[1644682816600,5.21,95.982,95.923,2.62390296]
[1644682816800,40.94266938,95.989,95.923,2.62390296]
[1644682817001,4.14214648,95.988,95.923,2.62390296]
[1644682817201,4.39214648,95.988,95.924,0.25]
[1644682817501,4.14214648,95.987,95.924,0.25]
[1644682817702,0.25,95.986,95.925,2.62390296]
[1644682818906,0.25,95.988,95.925,2.62390296]
[1644682819104,5.21,95.987,95.925,2.62390296]
[1644682819305,0.25,95.986,95.925,2.62390296]
[1644682819504,5.21,95.985,95.925,2.62390296]
[1644682819724,5.21,95.988,95.925,2.62390296]
[1644682821121,40.94266938,95.989,95.925,2.62390296]
[1644682823829,5.21,95.988,95.925,2.62390296]
[1644682824024,5.46,95.988,95.925,2.62390296]
[1644682827831,4.14527519,95.987,95.925,2.62390296]
[1644682828029,5.21,95.986,95.925,2.62390296]
[1644682828230,40.94266938,95.989,95.925,2.62390296]
[1644682828433,40.94266938,95.989,95.926,38.35325775]
[1644682828631,4.38842103,96.023,95.94,15.02]
[1644682828632,2.93410972,96.013,95.94,15.02]
[1644682828831,4.38842103,96.04,95.94,15.02]
[1644682828832,4.14460106,96.014,95.94,15.02]
[1644682829034,4.14460106,96.014,95.941,2.62390296]
[1644682829633,37.39265214,96.013,95.942,22.3218969]
[1644682829833,4.14460106,96.012,95.941,18.41660296]
[1644682830033,4.14460106,96.012,95.943,2.62390296]
[1644682830236,5.208,96.011,95.943,2.62390296]
[1644682830436,4.14460106,96.01,95.943,2.62390296]
[1644682830834,37.39265214,96.013,95.943,2.62390296]
[1644682830835,4.14460106,96.012,95.943,2.62390296]
[1644682832437,5.208,96.011,95.943,2.62390296]
[1644682832638,4.14460106,96.01,95.943,2.62390296]
[1644682833040,4.14460106,96.01,95.944,5.208]
[1644682833237,37.39265214,96.013,95.944,5.208]
[1644682833438,37.39265214,96.013,95.945,2.62390296]
[1644682834540,2.93410972,96.023,95.945,2.62390296]
[1644682834740,2.93410972,96.023,95.95,15.6323]
[1644682834940,2.93410972,96.05,95.96,15.02]
[1644682835139,73.635,96.111,95.96,15.02]
[1644682835140,2.93410972,96.06,95.961,4.07774]
[1644682835339,2.93410972,96.064,95.962,104.0]
[1644682835540,2.93410972,96.066,95.963,23.8393923]
[1644682835741,2.93410972,96.068,95.982,36.71771276]
[1644682835941,4.13942866,96.076,95.982,36.71771276]
[1644682835942,2.93410972,96.069,95.99,15.02]
[1644682836141,2.93410972,96.069,95.991,9.28246]
[1644682836340,4.13942866,96.068,96.011,23.95744189]
[1644682836540,4.13942866,96.068,96.02,15.02]
[1644682836742,2.93410972,96.073,96.02,15.02]
[1644682836939,39.49598902,96.077,96.02,15.02]
[1644682837744,39.49598902,96.077,96.02,30.6413]
[1644682838155,5.205,96.085,96.021,2.62390296]
[1644682838343,4.12714023,96.084,96.021,2.62390296]
[1644682838543,5.205,96.083,96.021,2.62390296]
[1644682838742,5.205,96.09,96.021,2.62390296]
[1644682838944,2.93410972,96.091,96.021,2.62390296]
[1644682839247,40.67827305,96.088,96.021,2.62390296]
[1644682839644,13.37060852,96.087,96.021,2.62390296]
[1644682840244,40.67827305,96.088,96.021,2.62390296]
[1644682842244,40.67827305,96.088,96.031,36.71771276]
[1644682842448,5.205,96.087,96.031,36.71771276]
[1644682842647,40.67827305,96.088,96.031,36.71771276]
[1644682847277,42.14284926,96.088,96.031,36.71771276]
[1644682847679,42.14284926,96.088,96.03,15.6206]
[1644682847878,1.46457621,96.087,96.03,15.6206]
[1644682848680,42.14284926,96.088,96.03,15.6206]
[1644682848883,5.205,96.087,96.03,15.6206]
[1644682851285,42.14284926,96.088,96.021,2.62390296]
[1644682853884,6.66957621,96.087,96.021,2.62390296]
[1644682854381,5.205,96.087,96.021,2.62390296]
[1644682855182,40.67827305,96.088,96.021,2.62390296]
[1644682855383,1.46457621,96.09,96.021,106.62390296]
[1644682855583,1.46457621,96.097,96.021,110.69909296]
[1644682855784,1.46457621,96.102,96.022,2.62390296]
[1644682855984,1.46457621,96.102,96.022,28.52084992]
[1644682856184,1.46457621,96.098,96.023,16.61779696]
[1644682856384,1.46457621,96.096,96.024,5.205]
[1644682856585,1.46457621,96.096,96.024,7.82890296]
[1644682856885,46.46661025,96.097,96.025,6.69892296]